lending/lending_fUSD_20260317
["ID","MTS","AMOUNT","RATE_DAILY","PERIOD"]
[408487501,1773743942837,-151.0,0.00041096,120]
[408487502,1773743942863,-151.0,0.00041096,120]
[408487503,1773743942888,-151.0,0.00041096,120]
[408487504,1773743942914,-249.553865,0.00041096,120]
[408487505,1773743942939,-618.75,0.00041102,30]
[408487506,1773743942965,-5258.68,0.00041102,30]
[408487507,1773743942991,-150.0,0.00041121,120]
[408487508,1773743943019,-250.0,0.00041185,90]
[408487509,1773743943044,-929.37600956,0.000412,30]
[408487510,1773743943069,-363.10827,0.00041288,30]
[408487511,1773743943095,-707.33,0.00041329,30]
[408487512,1773743943119,-707.33,0.00041329,30]
[408487513,1773743943144,-1000.0,0.0004137,120]
[408487514,1773743943169,-363.10827,0.00041488,30]
[408487515,1773743943194,-500.0,0.000415,45]
[408487516,1773743943220,-500.0,0.000415,45]
[408487517,1773743943245,-500.0,0.000415,45]
[408487518,1773743943274,-500.0,0.000415,45]
[408487519,1773743943300,-500.0,0.000415,45]
[408487520,1773743943328,-500.0,0.000415,45]
[408487521,1773743943352,-500.0,0.000415,45]
[408487522,1773743943377,-500.0,0.000415,45]
[408487523,1773743943402,-500.0,0.000415,45]
[408487524,1773743943429,-500.0,0.000415,45]
[408487525,1773743943457,-153.0,0.000415,120]
[408487526,1773743943482,-208.723998,0.000415,120]
[408487527,1773743943508,-291.05,0.00041537,30]
[408487528,1773743943534,-963.75,0.00041578,120]
[408487529,1773743943558,-707.33,0.00041603,30]
[408487530,1773743943583,-707.33,0.00041603,30]
[408487531,1773743943607,-1000.0,0.00041644,120]
[408487532,1773743943762,-363.10827,0.00041688,30]
[408487533,1773743943790,-10993.0,0.000417,117]
[408487534,1773743943816,-198.56,0.00041815,120]
[408487535,1773743943842,-8413.89,0.00041829,120]
[408487536,1773743943868,-707.33,0.00041877,30]
[408487537,1773743943892,-707.33,0.00041877,30]
[408487538,1773743943917,-363.10827,0.00041888,30]
[408487539,1773743943942,-1000.0,0.00041918,120]
[408487540,1773743943966,-250.0,0.00041935,94]
[408487541,1773743943998,-200.0,0.00041947,30]
[408487542,1773743944025,-1982.95515763,0.00042,60]
[408487543,1773743944051,-165.6120363,0.00042,120]
[408487544,1773743944076,-261.0817913,0.00042,120]
[408487545,1773743944103,-500.0,0.00042,45]
[408487546,1773743944127,-500.0,0.00042,45]
[408487547,1773743944151,-500.0,0.00042,45]
[408487548,1773743944175,-500.0,0.00042,45]
[408487549,1773743944199,-500.0,0.00042,45]
[408487550,1773743944223,-500.0,0.00042,45]
[408487551,1773743944248,-500.0,0.00042,45]
[408487552,1773743944277,-500.0,0.00042,45]
[408487553,1773743944302,-500.0,0.00042,45]
[408487554,1773743944328,-500.0,0.00042,45]
[408487555,1773743944356,-42217.92971914,0.00042,30]
[408487556,1773743944383,-530.45764417,0.00042,120]
[408487557,1773743944408,-444.0,0.00042,120]
[408487558,1773743944437,-1448.34558609,0.00042,30]
[408487559,1773743944465,-24775.57077959,0.0004201,30]
[408487560,1773743944495,-153.52441787,0.00042061,75]
[408487561,1773743944521,-465.68,0.00042081,120]
[408487562,1773743944551,-2561.15547861,0.00042091,75]
[408487563,1773743944579,-544.57,0.000421,90]
[408487564,1773743944605,-1000.0,0.00042192,120]
[408487565,1773743944632,-22220.0,0.000423,60]
[408487566,1773743944665,-250.0,0.00042389,100]
[408487567,1773743944692,-289.63782647,0.00042438,120]
[408487568,1773743944720,-197.4935404,0.00042438,120]
[408487569,1773743944747,-1000.0,0.00042466,120]
[408487570,1773743944772,-16023.00375938,0.000425,30]
[408487571,1773743944797,-1605.66541558,0.000425,120]
[408487572,1773743944822,-1462.4,0.00042537,30]
[408487573,1773743944847,-678.89,0.000426,30]
[408487574,1773743944872,-250.0,0.00042665,106]
[408487575,1773743944907,-1000.0,0.0004274,120]
[408487576,1773743944949,-318.48,0.00042813,120]
[408487577,1773743944980,-250.0,0.00042832,110]
[408487578,1773743945009,-1974.5031895,0.0004288,60]
[408487579,1773743945040,-250.0,0.00042933,114]
[408487580,1773743945071,-200.0,0.00042947,30]
[408487581,1773743945098,-226.28,0.00042977,120]
[408487582,1773743945125,-333.0,0.00042977,120]
[408487583,1773743945152,-250.0,0.00042995,117]
[408487584,1773743945182,-910.84551381,0.00043,120]
[408487585,1773743945209,-10000.0,0.00043,120]
[408487586,1773743945235,-153.0,0.00043,120]
[408487587,1773743945262,-1000.0,0.00043014,120]
[408487588,1773743945307,-300.0,0.00043031,120]
[408487589,1773743945342,-300.0,0.00043031,120]
[408487590,1773743945371,-300.0,0.00043031,120]
[408487591,1773743945398,-300.0,0.00043031,120]
[408487592,1773743945427,-300.0,0.00043031,120]
[408487593,1773743945457,-300.0,0.00043031,120]
[408487594,1773743945483,-300.0,0.00043031,120]
[408487595,1773743945518,-411.40608662,0.00043031,120]
[408487596,1773743945546,-250.0,0.00043032,118]
[408487597,1773743945573,-250.0,0.00043055,119]
[408487598,1773743945601,-250.0,0.00043068,120]
[408487599,1773743945634,-250.0,0.00043068,120]
[408487600,1773743945679,-250.0,0.00043068,120]
[408487601,1773743945709,-250.0,0.00043068,120]
[408487602,1773743945739,-250.0,0.00043068,120]
[408487603,1773743945767,-250.0,0.00043068,120]
[408487604,1773743945796,-1063.71409303,0.000431,120]
[408487605,1773743945824,-150.0,0.00043177,120]
[408487606,1773743945853,-333.0,0.00043251,120]
[408487607,1773743945879,-1000.0,0.00043288,120]
[408487608,1773743945906,-219264.79071231,0.000434,120]
[408487609,1773743945932,-150.0,0.00043413,30]
[408487610,1773743945960,-3334.688,0.00043425,120]
[408487611,1773743945987,-3334.688,0.00043425,120]
[408487612,1773743946013,-3334.688,0.00043425,120]
[408487613,1773743946039,-3334.688,0.00043425,120]
[408487614,1773743946065,-3334.688,0.00043425,120]
[408487615,1773743946092,-3334.688,0.00043425,120]
[408487616,1773743946118,-3334.688,0.00043425,120]
[408487617,1773743946143,-3334.688,0.00043425,120]
[408487618,1773743946169,-3334.688,0.00043425,120]
[408487619,1773743946195,-3334.688,0.00043425,120]
[408487620,1773743946220,-3334.688,0.00043425,120]
[408487621,1773743946247,-3334.688,0.00043425,120]
[408487622,1773743946277,-3334.688,0.00043425,120]
[408487623,1773743946304,-3334.688,0.00043425,120]
[408487624,1773743946331,-3334.688,0.00043425,120]
[408487625,1773743946359,-3334.688,0.00043425,120]
[408487626,1773743946521,-3334.688,0.00043425,120]
[408487627,1773743946557,-3334.688,0.00043425,120]
[408487628,1773743946586,-3334.688,0.00043425,120]
[408487629,1773743946614,-3334.688,0.00043425,120]
[408487630,1773743946641,-3037.81733905,0.000435,30]
[408487631,1773743946668,-333.0,0.00043525,120]
[408487632,1773743946694,-1000.0,0.00043562,120]
[408487633,1773743946721,-1051.73,0.00043587,30]
[408487634,1773743946748,-22220.0,0.0004365,60]
[408487635,1773743946779,-238.791094,0.000437,120]
[408487636,1773743946819,-3580.0,0.000438,120]
[408487637,1773743946847,-647.36600635,0.00043835,120]
[408487639,1773743947148,1000.0,0.00037534,120]
[408487640,1773743947188,1000.0,0.00037808,120]
[408487641,1773743947220,10193.0,0.00033,30]
[408487642,1773743947270,620.0,0.00033151,30]
[408487643,1773743947303,1000.0,0.00038082,120]
[408487644,1773743947373,683.0,0.00036088,30]
[408487645,1773743947406,10613.0,0.00035888,30]
[408487646,1773743947451,10188.0,0.00036989,30]
[408487647,1773743947483,631.0,0.00037022,30]
[408487648,1773743947531,232.35,0.0004,120]
[408487649,1773743947574,574.0,0.000392,30]
[408487650,1773743947609,9746.0,0.000392,30]
[408487651,1773743947673,151.0,0.0004,30]
[408487652,1773743947742,521.0,0.00040067,60]
[408487653,1773743947805,9321.0,0.0004016,60]
[408487654,1773743947944,474.0,0.00040507,60]
[408487655,1773743947983,929.37600956,0.00033,30]
[408487656,1773743948022,8915.0,0.000408,60]
[408487657,1773743948105,430.0,0.00041068,60]
[408487658,1773743948177,8527.0,0.00041096,60]
[408487659,1773743948237,552.0,0.00041877,60]
[408487660,1773743948286,8155.0,0.00042,60]
[408487661,1773743948373,7800.0,0.00043031,60]
[408487662,1773743948417,1063.0,0.00043031,60]
[408487663,1773743948704,925.0,0.0004365,60]
[408487664,1773743948876,7460.0,0.00043587,60]
[408487665,1773743948926,1316.16,0.00024514,120]
[408487666,1773743948977,460.0,0.00043835,60]
[408487667,1773743949030,1754.88,0.00025848,120]
[408487668,1773743949081,7135.0,0.00043835,60]
[408487669,1773743949213,2193.6,0.00027181,120]
[408487670,1773743949248,151.0,0.00042192,30]
[408487671,1773743949297,1000.0,0.00038356,120]
[408487672,1773743949354,2632.32,0.00028514,120]
[408487673,1773743949457,3071.04,0.00029848,120]
[408487674,1773743949678,660.0,0.00043835,60]
[408487675,1773743949801,3509.76,0.00031181,120]
[408487676,1773743949971,7135.0,0.00043835,60]
[408487677,1773743950160,3948.48,0.00032515,120]
[408487678,1773743950436,200.0,0.00043836,30]
[408487679,1773743950516,4387.2,0.00033848,120]
[408487680,1773743950549,6888.0,0.00043836,30]
[408487681,1773743950601,750.0,0.00043836,30]
[408487682,1773743950922,500.0,0.00043836,30]
[408487683,1773743950952,220.0,0.00043836,30]
[408487684,1773743951006,10000.0,0.00043836,30]
[408487685,1773743951037,200.0,0.00043836,30]
[408487686,1773743951090,520.0,0.00043836,30]
[408487687,1773743951143,250.0,0.00043836,30]
[408487688,1773743951178,7142.856,0.00043836,30]
[408487689,1773743951217,750.0,0.00043836,30]
[408487690,1773743951314,500.0,0.00043836,30]
[408487691,1773743951570,2000.0,0.0004383,30]
[408487692,1773743951602,233.20432544,0.00043836,30]
[408487693,1773743951633,500.0,0.00043836,30]
[408487694,1773743951663,10370.0,0.00043836,30]
[408487695,1773743951692,268.40098731,0.00043836,30]
[408487696,1773743951721,539.24,0.00043836,30]
[408487697,1773743951759,250.0,0.00043836,30]
[408487698,1773743951793,7407.141672,0.00043836,30]
[408487699,1773743951831,750.0,0.00043836,30]
[408487700,1773743951910,500.0,0.00043836,30]
[408487701,1773743952223,500.0,0.00043836,30]
[408487702,1773743952267,10753.69,0.00043836,30]
[408487703,1773743952305,559.19188,0.00043836,30]
[408487704,1773743952367,7681.20591386,0.00043836,30]
[408487705,1773743952397,250.0,0.00043836,30]
[408487706,1773743952471,750.0,0.00043836,30]
[408487707,1773743952810,500.0,0.00043836,30]
[408487708,1773743952842,11151.57653,0.00043836,30]
[408487709,1773743952902,287.60805542,0.00043836,30]
[408487710,1773743952989,7965.41053268,0.00043836,30]
[408487711,1773743953022,250.0,0.00043836,30]
[408487712,1773743953077,750.0,0.00043836,30]
[408487713,1773743953419,500.0,0.00043836,30]
[408487714,1773743953469,11564.18486161,0.00043836,30]
[408487715,1773743953583,8260.13072239,0.00043836,30]
[408487716,1773743953614,250.0,0.00043836,30]
[408487717,1773743953686,750.0,0.00043836,30]
[408487718,1773743954028,500.0,0.00043836,30]
[408487719,1773743954084,11992.05970149,0.00043836,30]
[408487720,1773743954181,8565.75555911,0.00043836,30]
[408487721,1773743954218,250.0,0.00043836,30]
[408487722,1773743954449,750.0,0.00043836,30]
[408487723,1773743954638,500.0,0.00043836,30]
[408487724,1773743954674,151.0,0.00043836,30]
[408487725,1773743954704,12436.40551859,0.00043836,30]
[408487726,1773743954822,250.0,0.00043836,30]
[408487727,1773743955337,156.587,0.00043836,30]
[408487728,1773743955930,500.0,0.00043836,30]
[408487729,1773743955964,245.0486657,0.00043836,30]
[408487730,1773743956521,518.5,0.00043836,30]
[408487731,1773743957092,250.0,0.00043836,30]
[408487732,1773743957341,537.6845,0.00043836,30]
[408487733,1773743957372,3000.0,0.00043836,30]
[408487734,1773743957405,500.0,0.00043836,30]
[408487735,1773743957707,250.0,0.00043836,30]
[408487736,1773743957758,151.49903748,0.00043836,30]
[408487737,1773743957793,572.33470636,0.00043836,30]
[408487738,1773743957841,2027.92480951,0.00043836,30]
[408487739,1773743957925,500.0,0.00043836,30]
[408487740,1773743958316,250.0,0.00043836,30]
[408487741,1773743958572,500.0,0.00043836,30]
[408487742,1773743958734,500.0,0.00043836,30]
[408487743,1773743958889,151.0,0.00043836,30]
[408487744,1773743958953,250.0,0.00043836,30]
[408487745,1773743958991,500.0,0.00043836,30]
[408487746,1773743959557,250.0,0.00043836,30]
[408487747,1773743959596,500.0,0.00043836,30]
[408487748,1773743960151,250.0,0.00043836,30]
[408487749,1773743960201,500.0,0.00043836,30]
[408487750,1773743960522,500.0,0.00043836,30]
[408487751,1773743960690,156.587,0.00043836,30]
[408487752,1773743960724,500.0,0.00043836,30]
[408487753,1773743960845,500.0,0.00043836,30]
[408487754,1773743960950,500.0,0.00043836,30]
[408487755,1773743961109,500.0,0.00043836,30]
[408487756,1773743961294,250.0,0.00043836,30]
[408487757,1773743961333,500.0,0.00043836,30]
[408487758,1773743961559,500.0,0.00043836,30]
[408487759,1773743961713,500.0,0.00043836,30]
[408487760,1773743961919,250.0,0.00043836,30]
[408487761,1773743962151,500.0,0.00043836,30]
[408487762,1773743962208,500.0,0.00043836,30]
[408487763,1773743962326,500.0,0.00043836,30]
[408487764,1773743962736,500.0,0.00043836,30]
[408487765,1773743962935,500.0,0.00043836,30]
[408487766,1773743963273,500.0,0.00043836,30]
[408487767,1773743963542,500.0,0.00043836,30]
[408487768,1773743963884,500.0,0.00043836,30]
[408487769,1773743963932,250.0,0.00043836,30]
[408487770,1773743964510,500.0,0.00043836,30]
[408487771,1773743964932,250.0,0.00043836,30]
[408487772,1773743965146,500.0,0.00043836,30]
[408487773,1773743986395,80276.57669027,0.00032876,120]
[408487774,1773743997519,366.13,0.00024377,120]
[408487775,1773743997855,732.26,0.00025865,120]
[408487776,1773743998224,1098.4,0.00027353,120]
[408487777,1773743998578,1464.53,0.0002884,120]
[408487778,1773743999306,1830.66,0.00030328,120]
[408487779,1773743999347,2196.79,0.00031816,120]
[408487780,1773744004853,21342.91345056,0.00032876,120]
[408487782,1773744009986,-59662.4538217,0.00047813,120]
[408487783,1773744010012,-30000.0,0.00047813,60]
[408487784,1773744010036,-49963.6,0.00047813,120]
[408487785,1773744010066,-10000.0,0.00047813,50]
[408487786,1773744010091,-10000.0,0.00047813,60]
[408487787,1773744010116,-10000.0,0.00047813,70]
[408487788,1773744010142,-830.0,0.00047813,31]
[408487789,1773744010167,-100109.60000079,0.00047813,120]
[408487790,1773744010191,-2621.937893,0.00047813,120]
[408487791,1773744010216,-314.26258555,0.00047813,120]
[408487792,1773744010240,-4009.52079759,0.00047813,120]
[408487793,1773744010265,-289.06786165,0.00047813,60]
[408487794,1773744010292,-442.61955091,0.00047813,120]
[408487795,1773744010317,-272.0,0.00047813,120]
[408487796,1773744010342,-751.40042873,0.00047813,90]
[408487797,1773744010382,-1002.29342894,0.00047813,120]
[408487798,1773744010409,-155.25131799,0.00047813,120]
[408487799,1773744010435,-183.83857361,0.00047813,120]
[408487800,1773744010461,-340.71926441,0.00047813,120]
[408487801,1773744010488,-200.66807601,0.00047813,90]
[408487802,1773744010514,-325.82213082,0.00047813,120]
[408487803,1773744010539,-578.90238793,0.00047813,120]
[408487804,1773744010565,-903.05714709,0.00047813,120]
[408487805,1773744010590,-181.21329647,0.00047813,120]
[408487806,1773744010615,-935.8581753,0.00047813,31]
[408487807,1773744010641,-2207.07134761,0.00047813,30]
[408487808,1773744010666,-181.93217842,0.00047813,120]
[408487809,1773744010691,-5009.38284847,0.00047813,30]
[408487810,1773744010716,-172.15474101,0.00047813,120]
[408487811,1773744010741,-152.91846042,0.00047813,120]
[408487812,1773744010766,-283.84487515,0.00047813,120]
[408487813,1773744010796,-3499.18123732,0.00047813,30]
[408487814,1773744010823,-1719.11489099,0.00047813,120]
[408487815,1773744010850,-313.77669308,0.00047813,30]
[408487816,1773744010876,-190.94229493,0.00047813,120]
[408487817,1773744010902,-159.69112657,0.00047813,120]
[408487818,1773744010927,-252.86476151,0.00047813,120]
[408487819,1773744010953,-481.94164535,0.00047813,120]
[408487820,1773744010979,-356.25714989,0.00047813,120]
[408487821,1773744011005,-1114.70852813,0.00047813,30]
[408487822,1773744011031,-563.04485078,0.00047813,120]
[408487823,1773744011059,-657.98823261,0.00047813,30]
[408487824,1773744011085,-1371.0263176,0.00047813,60]
[408487825,1773744011112,-32314.33992205,0.00047813,120]
[408487826,1773744011140,-1252.10615009,0.00047813,120]
[408487827,1773744011167,-52094.14,0.00047813,120]
[408487828,1773744011192,-4209.69301644,0.00047813,120]
[408487829,1773744011219,-264.05907434,0.00047813,120]
[408487830,1773744011245,-549.43090716,0.00047813,120]
[408487831,1773744011273,-416.52438859,0.00047813,30]
[408487832,1773744011300,-3899.0,0.00047813,30]
[408487833,1773744011328,-1955.7935904,0.00047813,120]
[408487834,1773744011355,-699903.38534587,0.00047813,30]
[408487835,1773744011383,-50000.0,0.00047813,50]
[408487836,1773744011410,-1854.93,0.00047813,120]
[408487837,1773744011436,-1016.1545293,0.00047813,120]
[408487838,1773744011463,-17700.77,0.00047813,30]
[408487839,1773744011491,-50000.0,0.00047813,54]
[408487840,1773744011517,-50000.0,0.00047813,56]
[408487841,1773744011542,-379.07,0.00047813,120]
[408487842,1773744011568,-5000.0,0.00047813,38]
[408487843,1773744011592,-378.459527,0.00047813,120]
[408487844,1773744011616,-500.0,0.00047813,31]
[408487845,1773744011645,-50000.0,0.00047813,58]
[408487846,1773744011671,-500.0,0.00047813,120]
[408487847,1773744011698,-326.84365431,0.00047813,120]
[408487848,1773744011724,-273.18671938,0.00047813,120]
[408487849,1773744011750,-424.34792025,0.00047813,120]
[408487850,1773744011776,-542.09388934,0.00047813,31]
[408487851,1773744011800,-1000.0,0.00047813,31]
[408487852,1773744011826,-1000.0,0.00047813,31]
[408487853,1773744011851,-1000.0,0.00047813,31]
[408487854,1773744011877,-1000.0,0.00047813,31]
[408487855,1773744011904,-1000.0,0.00047813,31]
[408487856,1773744011929,-1000.0,0.00047813,31]
[408487857,1773744011954,-1000.0,0.00047813,31]
[408487858,1773744011979,-314.28871497,0.00047813,31]
[408487859,1773744012003,-441.8,0.00047813,60]
[408487860,1773744012028,-1360.0,0.00047813,30]
[408487861,1773744012195,-946.32517592,0.00047813,120]
[408487862,1773744012222,-343.0,0.00047813,30]
[408487863,1773744012248,-2222.00042842,0.00047813,120]
[408487864,1773744012274,-4264.82853909,0.00047813,120]
[408487865,1773744012303,-50000.0,0.00047813,60]
[408487866,1773744012330,-50000.0,0.00047813,62]
[408487867,1773744012354,-5000.0,0.00047813,37]
[408487868,1773744012382,-50000.0,0.00047813,55]
[408487869,1773744012408,-5000.0,0.00047813,30]
[408487870,1773744012433,-5000.0,0.00047813,30]
[408487871,1773744012458,-5000.0,0.00047813,30]
[408487872,1773744012483,-5000.0,0.00047813,30]
[408487873,1773744012507,-1000.0,0.00047813,30]
[408487874,1773744012532,-5000.0,0.00047813,120]
[408487875,1773744012557,-5000.0,0.00047813,120]
[408487876,1773744012582,-5000.0,0.00047813,120]
[408487877,1773744012606,-5000.0,0.00047813,120]
[408487878,1773744012630,-1000.0,0.00047813,120]
[408487879,1773744012655,-105904.86,0.00047813,120]
[408487880,1773744012681,-7677.235047,0.00047813,90]
[408487881,1773744012706,-1208.86306643,0.00047813,120]
[408487882,1773744012730,-248.2623746,0.00047813,30]
[408487883,1773744012758,-500.0,0.00047813,85]
[408487884,1773744012782,-521.42617204,0.00047813,85]
[408487885,1773744012807,-1000.0,0.00047813,31]
[408487886,1773744012831,-1000.0,0.00047813,31]
[408487887,1773744012856,-1000.0,0.00047813,31]
[408487888,1773744012880,-1000.0,0.00047813,31]
[408487889,1773744012905,-1000.0,0.00047813,31]
[408487890,1773744012930,-1000.0,0.00047813,31]
[408487891,1773744012954,-400.0,0.00047813,31]
[408487892,1773744012978,-53500.0,0.00047813,120]
[408487893,1773744013003,-1877.20375986,0.00047813,120]
[408487894,1773744013026,-107630.06115269,0.00047813,120]
[408487895,1773744013052,-254.843781,0.00047813,120]
[408487896,1773744013076,-268.93593079,0.00047813,120]
[408487897,1773744013100,-182.67822291,0.00047813,120]
[408487898,1773744013125,-2787.1955005,0.00047813,120]
[408487899,1773744013148,-302.17546553,0.00047813,60]
[408487900,1773744013172,-1195.50703098,0.00047813,120]
[408487901,1773744013195,-178.94375034,0.00047813,120]
[408487902,1773744013218,-216.29521,0.00047813,60]
[408487903,1773744013242,-153.0,0.00047813,120]
[408487904,1773744013265,-200.28725613,0.00047813,120]
[408487905,1773744013291,-163.94959,0.00047813,45]
[408487906,1773744013316,-163.94959,0.00047813,45]
[408487907,1773744013342,-163.94959,0.00047813,45]
[408487908,1773744013367,-279.00542261,0.00047813,120]
[408487909,1773744013392,-400.0,0.00047813,30]
[408487910,1773744013416,-443.11350204,0.00047813,120]
[408487911,1773744013442,-207.55269368,0.00047813,91]
[408487912,1773744013467,-312.6463035,0.00047813,60]
[408487913,1773744013494,-642.83239816,0.00047813,30]
[408487914,1773744013522,-291.91588917,0.00047813,30]
[408487915,1773744013545,-891.76471792,0.00047813,30]
[408487916,1773744013569,-1217.63038453,0.00047813,30]
[408487917,1773744013593,-2714.71776818,0.00047813,120]
[408487918,1773744013620,-524.09431437,0.00047813,120]
[408487919,1773744013644,-722.42041929,0.00047813,30]
[408487920,1773744013669,-166.41955829,0.00047813,120]
[408487921,1773744013698,-350.04263229,0.00047813,30]
[408487922,1773744013722,-334.02747879,0.00047813,120]
[408487923,1773744013747,-150.16755092,0.00047813,120]
[408487924,1773744013771,-157.45295047,0.00047813,120]
[408487925,1773744013796,-336.80897572,0.00047813,120]
[408487926,1773744013820,-220.81123954,0.00047813,120]
[408487927,1773744013846,-163.57034185,0.00047813,120]
[408487928,1773744013870,-169.65705834,0.00047813,120]
[408487929,1773744013895,-157.16693305,0.00047813,120]
[408487930,1773744013918,-206.31407732,0.00047813,120]
[408487931,1773744013943,-168.19866312,0.00047813,120]
[408487932,1773744013967,-2649.91383599,0.00047813,30]
[408487933,1773744013990,-192.73986229,0.00047813,30]
[408487934,1773744014015,-3574.46218579,0.00047813,30]
[408487935,1773744014039,-186.72344658,0.00047813,120]
[408487936,1773744014066,-564.32861487,0.00047813,120]
[408487937,1773744014092,-9322.76622802,0.00047813,60]
[408487938,1773744014119,-4236.71548012,0.00047813,30]
[408487939,1773744014144,-152.06947646,0.00047813,60]
[408487940,1773744014167,-295.41925406,0.00047813,120]
[408487941,1773744014193,-410.48124564,0.00047813,120]
[408487942,1773744014335,-203.81167454,0.00047813,30]
[408487943,1773744014361,-163.48624694,0.00047813,120]
[408487944,1773744014386,-892.56193795,0.00047813,30]
[408487945,1773744014412,-21379.43571735,0.00047813,30]
[408487946,1773744014436,-273.69369266,0.00047813,30]
[408487947,1773744014460,-553.33462419,0.00047813,30]
[408487948,1773744014485,-367.87594288,0.00047813,30]
[408487949,1773744014510,-1643.67183843,0.00047813,30]
[408487950,1773744014534,-488.53564634,0.00047813,120]
[408487951,1773744014559,-515.02951981,0.00047813,30]
[408487952,1773744014583,-158.92390762,0.00047813,120]
[408487953,1773744014607,-5254.7681585,0.00047813,60]
[408487954,1773744014631,-370.57473478,0.00047813,30]
[408487955,1773744014657,-473.67204472,0.00047813,30]
[408487956,1773744014684,-160.63848867,0.00047813,30]
[408487957,1773744014711,-23762.25883451,0.00047813,120]
[408487958,1773744014737,-296.02368379,0.00047813,120]
[408487959,1773744014764,-4085.40500289,0.00047813,120]
[408487960,1773744014791,-8308.05762849,0.00047813,60]
[408487961,1773744014818,-268.0,0.00047813,120]
[408487962,1773744014845,-93000.0,0.00047813,120]
[408487963,1773744014873,-2667.948,0.00047813,30]
[408487964,1773744014898,-162.12,0.00047813,30]
[408487965,1773744014925,-315.75256649,0.00047813,120]
[408487966,1773744014952,-1840.13543443,0.00047813,120]
[408487967,1773744014976,-500.0,0.00047813,120]
[408487968,1773744015000,-31340.64,0.00047813,120]
[408487969,1773744015025,-187.0,0.00047813,120]
[408487970,1773744015050,-1608.368839,0.00047813,60]
[408487971,1773744015075,-17166.95064316,0.00047813,30]
[408487972,1773744015101,-51824.07,0.00047813,120]
[408487973,1773744015126,-15450.67743806,0.00047813,120]
[408487974,1773744015152,-85280.3609252,0.00047813,30]
[408487975,1773744015177,-69729.27735594,0.00047813,30]
[408487976,1773744015201,-82950.65891761,0.00047813,30]
[408487977,1773744015226,-5417.6384599,0.00047813,30]
[408487978,1773744015250,-79110.55929655,0.00047813,30]
[408487979,1773744015276,-5916.72418181,0.00047813,30]
[408487980,1773744015306,-343648.81496518,0.00047813,30]
[408487981,1773744015331,-9018.21337473,0.00047813,30]
[408487982,1773744015356,-10343.35413084,0.00047813,30]
[408487983,1773744015381,-3629.14565185,0.00047813,30]
[408487984,1773744015406,-496579.26081343,0.00047813,30]
[408487985,1773744015430,-1655770.49587574,0.00047813,90]
[408487986,1773744020348,-2381523.06581432,0.00047813,90]
[408487987,1773744020375,-571.61686723,0.00047813,120]
[408487988,1773744020400,-814.89659663,0.00047813,120]
[408487989,1773744020428,-167.87,0.00047813,120]
[408487990,1773744020455,-71000.0,0.00047813,30]
[408487991,1773744020482,-583.78372975,0.00047813,120]
[408487992,1773744020509,-175.0,0.00047813,30]
[408487993,1773744020534,-34367.25445201,0.00047813,30]
[408487994,1773744020561,-46690.0,0.00047813,30]
[408487995,1773744020586,-495.0,0.00047813,120]
[408487996,1773744020612,-1000.0,0.00047813,30]
[408487997,1773744020639,-904.61301516,0.00047813,120]
[408487998,1773744020666,-328.04775141,0.00047813,120]
[408487999,1773744020692,-916.64,0.00047813,120]
[408488000,1773744020718,-351.69,0.00047813,30]
[408488001,1773744020745,-351.69,0.00047813,30]
[408488002,1773744020772,-351.69,0.00047813,30]